fUSD/lending_fUSD_20240822
["ID","MTS","AMOUNT","RATE_DAILY","PERIOD"]
[335556371,1724325317078,-246.45,0.00029315,30]
[335556372,1724325317101,-246.45,0.00029452,30]
[335556373,1724325317124,-345.85866641,0.000295,120]
[335556374,1724325317146,-246.45,0.00029589,30]
[335556375,1724325317169,-1369.809881,0.000296,10]
[335556376,1724325317195,-858.79,0.000296,31]
[335556377,1724325317223,-858.79,0.000296,31]
[335556378,1724325317248,-858.79,0.000296,31]
[335556379,1724325317274,-858.79,0.000296,31]
[335556380,1724325317300,-858.79,0.000296,31]
[335556381,1724325317326,-858.79,0.000296,31]
[335556382,1724325317351,-858.79,0.000296,31]
[335556383,1724325317377,-858.79,0.000296,31]
[335556384,1724325317404,-858.79,0.000296,31]
[335556385,1724325317429,-858.79,0.000296,31]
[335556386,1724325317454,-858.79,0.000296,31]
[335556387,1724325317482,-858.79,0.000296,31]
[335556388,1724325317508,-858.79,0.000296,31]
[335556389,1724325317536,-858.79,0.000296,31]
[335556390,1724325317562,-858.79,0.000296,31]
[335556391,1724325317588,-858.79,0.000296,31]
[335556392,1724325317617,-858.79,0.000296,31]
[335556393,1724325317644,-858.79,0.000296,31]
[335556394,1724325317670,-858.79,0.000296,31]
[335556395,1724325317697,-858.79,0.000296,31]
[335556396,1724325317729,-858.79,0.000296,31]
[335556397,1724325317754,-858.79,0.000296,31]
[335556398,1724325317781,-858.79,0.000296,31]
[335556399,1724325317807,-858.79,0.000296,31]
[335556400,1724325317829,-1000.0,0.0002962,10]
[335556401,1724325317852,-1000.0,0.0002964,10]
[335556402,1724325317875,-1000.0,0.0002966,10]
[335556403,1724325317899,-1000.0,0.0002968,10]
[335556404,1724325317922,-1000.0,0.000297,10]
[335556405,1724325317946,-1000.0,0.0002972,10]
[335556406,1724325317970,-246.45,0.00029726,30]
[335556407,1724325317994,-1000.0,0.0002974,10]
[335556408,1724325318017,-1000.0,0.0002976,10]
[335556409,1724325318040,-1000.0,0.0002978,10]
[335556410,1724325318063,-1000.0,0.000298,10]
[335556411,1724325318086,-1000.0,0.0002982,10]
[335556412,1724325318108,-1000.0,0.0002984,10]
[335556413,1724325318131,-1000.0,0.0002986,10]
[335556414,1724325318154,-246.45,0.00029863,30]
[335556415,1724325318177,-1000.0,0.0002988,10]
[335556416,1724325318200,-1000.0,0.000299,10]
[335556417,1724325318224,-1000.0,0.0002992,10]
[335556418,1724325318247,-1000.0,0.0002994,10]
[335556419,1724325318270,-1000.0,0.0002996,10]
[335556420,1724325318294,-1000.0,0.0002998,10]
[335556421,1724325318318,-1159.31082798,0.00029999,30]
[335556422,1724325318342,-246.45,0.00029999,30]
[335556423,1724325318365,-670.3572696,0.0003,15]
[335556424,1724325318390,-7000.0,0.0003,14]
[335556425,1724325318414,-383.91242779,0.0003,30]
[335556426,1724325318438,-151.0,0.0003,120]
[335556427,1724325318462,-1201.78659059,0.0003,10]
[335556428,1724325318486,-9902.51633795,0.0003,21]
[335556429,1724325318512,-10184.63334118,0.0003,15]
[335556430,1724325318536,-151.0,0.0003,120]
[335556431,1724325318560,-2401.2747356,0.0003,15]
[335556432,1724325318584,-2000.0,0.0003,60]
[335556433,1724325318611,-300.0,0.0003,120]
[335556434,1724325318635,-10000.0,0.0003,14]
[335556435,1724325318661,-1800.0,0.0003,31]
[335556436,1724325318687,-2000.0,0.0003,14]
[335556437,1724325318710,-758.16372291,0.0003,120]
[335556438,1724325318736,-2495.33578407,0.0003,120]
[335556439,1724325318761,-2000.0,0.0003,10]
[335556440,1724325318786,-12680.43022064,0.0003,60]
[335556441,1724325318810,-21968.63781467,0.0003,30]
[335556442,1724325318835,-200.0,0.0003,30]
[335556443,1724325318860,-2424.97453097,0.0003,30]
[335556444,1724325323422,-8426.24,0.00027397,10]
[335556445,1724325323455,-7575.02546903,0.0003,30]
[335556446,1724325323481,-1000.0,0.0003,11]
[335556447,1724325323512,-1231.62562708,0.00030073,90]
[335556448,1724325323536,-246.45,0.00030136,30]
[335556449,1724325323561,-200.0,0.00030137,60]
[335556450,1724325328034,7021.87,0.00027397,10]
[335556451,1724325332188,-683.72147159,0.00030192,10]
[335556452,1724325332214,-300.0,0.00030192,15]
[335556453,1724325332239,-838.84939816,0.00030192,10]
[335556454,1724325332262,-1000.0,0.00030192,10]
[335556455,1724325332286,-500.0,0.00030192,10]
[335556456,1724325332312,-265.47111352,0.00030192,10]
[335556457,1724325332337,-1701.0930182,0.00030192,15]
[335556458,1724325332361,-2172.45917993,0.00030192,10]
[335556459,1724325332387,-476777.56213032,0.00030192,120]
[335556460,1724325332410,-193.0,0.00030192,30]
[335556461,1724325332433,-1080.80292144,0.00030192,120]
[335556462,1724325332458,-1533.77574459,0.00030192,30]
[335556463,1724325332483,-371.10903228,0.00030192,120]
[335556464,1724325332508,-4572.07733017,0.00030192,120]
[335556465,1724325332534,-10000.92399205,0.00030192,120]
[335556466,1724325332561,-857.80139465,0.00030192,120]
[335556467,1724325332586,-152.0,0.00030192,120]
[335556468,1724325332614,-237.7477359,0.00030192,60]
[335556469,1724325332639,-12639.30283307,0.00030192,30]
[335556470,1724325332665,-5636.42795019,0.00030192,30]
[335556471,1724325332691,-478485.87475394,0.00030192,30]
[335556472,1724325338874,-33554.06320322,0.00030192,30]
[335556473,1724325338898,-155871.23928832,0.00030192,30]
[335556474,1724325338922,-130611.34804571,0.00030192,30]
[335556475,1724325338945,-22484.32794899,0.00030192,30]
[335556476,1724325338969,-4239.55155621,0.00030192,30]
[335556477,1724325338993,-50000.0,0.00030192,30]
[335556478,1724325339016,-5283.85916208,0.00030192,30]
[335556479,1724325339040,-34007.78974439,0.00030192,30]
[335556480,1724325339066,-55040.36495927,0.00030192,30]
[335556481,1724325339090,-6411.67161937,0.00030192,30]
[335556482,1724325339113,-61056.80839927,0.00030192,30]
[335556483,1724325339136,-32143.69016301,0.00030192,30]
[335556484,1724325339159,-5666.09686018,0.00030192,30]
[335556485,1724325339182,-8670.46334385,0.00030192,30]
[335556486,1724325339205,-3707.49977167,0.00030192,30]
[335556487,1724325339231,-717.35684011,0.00030192,120]
[335556488,1724325339255,-20000.0,0.00030192,120]
[335556489,1724325339280,-20000.0,0.00030192,120]
[335556490,1724325339305,-26345.37173555,0.00030192,120]
[335556491,1724325339329,-981.55704231,0.00030192,120]
[335556492,1724325339353,-1128.18,0.00030192,31]
[335556493,1724325339376,-160.0,0.00030192,30]
[335556494,1724325339399,-1000.0,0.00030192,30]
[335556495,1724325339423,-155.75104345,0.00030192,120]
[335556496,1724325339445,-200000.0,0.00030192,10]
[335556497,1724325339469,-30811.94847393,0.00030192,10]
[335556498,1724325339493,-1000.0,0.00030192,30]
[335556499,1724325339516,-1000.0,0.00030192,30]
[335556500,1724325339539,-877.01116243,0.00030192,60]
[335556501,1724325339562,-1000.0,0.00030192,60]
[335556502,1724325339586,-800.61011152,0.00030192,30]
[335556503,1724325339613,-3035.68936704,0.00030192,30]
[335556504,1724325339637,-530.04369306,0.00030192,60]
[335556505,1724325339662,-2158.95735896,0.00030192,120]
[335556506,1724325339686,-837.43877064,0.00030192,30]
[335556507,1724325339708,-1000.0,0.00030192,30]
[335556508,1724325339734,-2646.98535143,0.00030192,30]
[335556509,1724325339756,-1621.33561998,0.00030192,120]
[335556510,1724325339780,-2500.0,0.00030192,30]
[335556511,1724325339804,-70942.98936405,0.00030192,10]
[335556512,1724325339974,5851.56,0.00027397,10]
[335556513,1724325345595,-24240.62827043,0.00030192,10]
[335556514,1724325345621,-820.28061614,0.00030192,30]
[335556515,1724325345646,-1200.0,0.00030192,120]
[335556516,1724325345671,-828.12627779,0.00030192,30]
[335556517,1724325345695,-2054.94610278,0.00030192,120]
[335556518,1724325345717,-892.01009449,0.00030192,30]
[335556519,1724325345747,-921.52506856,0.00030192,30]
[335556520,1724325345771,-948.15012379,0.00030192,120]
[335556521,1724325345797,-1403.22428282,0.00030192,120]
[335556522,1724325345820,-1791.45233416,0.00030192,120]
[335556523,1724325345842,-319.14031563,0.00030192,120]
[335556524,1724325345865,-10048.73966004,0.00030192,10]
[335556525,1724325345888,-202.86026027,0.00030192,120]
[335556526,1724325345912,-589.44293434,0.00030192,120]
[335556527,1724325345934,-847.64573378,0.00030192,30]
[335556528,1724325345957,-951.37610889,0.00030192,120]
[335556529,1724325345983,-275.0,0.00030192,14]
[335556530,1724325346005,-1221.69876156,0.00030192,120]
[335556531,1724325346027,-1933.85099477,0.00030192,120]
[335556532,1724325346050,-288.53852673,0.00030192,31]
[335556533,1724325346072,-1402.95508081,0.00030192,30]
[335556534,1724325346094,-1097.1311195,0.00030192,30]
[335556535,1724325346116,-756.0,0.00030192,120]
[335556536,1724325346138,-1065.37527616,0.00030192,120]
[335556537,1724325346160,-2950.8661926,0.00030192,120]
[335556538,1724325346182,-3015.87039193,0.00030192,120]
[335556539,1724325346205,-3999.999993,0.00030192,120]
[335556540,1724325346229,-50000.0,0.00030192,12]
[335556541,1724325346252,-30000.0,0.00030192,30]
[335556542,1724325346275,-29464.0,0.00030192,15]
[335556543,1724325346298,-4694.9506076,0.00030192,10]
[335556544,1724325346320,-238.56341536,0.00030192,60]
[335556545,1724325346344,-928.9801981,0.00030192,120]
[335556546,1724325346367,-5080.79676099,0.00030192,120]
[335556547,1724325346390,-253.52295926,0.00030192,30]
[335556548,1724325346413,-258.21582016,0.00030192,60]
[335556549,1724325346572,-1007.59648946,0.00030192,120]
[335556550,1724325346595,-15362.80257879,0.00030192,120]
[335556551,1724325346619,-193.0,0.00030192,30]
[335556552,1724325346642,-193.0,0.00030192,30]
[335556553,1724325346666,-208.0,0.00030192,30]
[335556554,1724325346690,-31988.96,0.00030192,41]
[335556555,1724325346712,-178100.38084885,0.00030192,30]
[335556556,1724325346735,-585960.39580046,0.00030192,30]
[335556557,1724325349074,4876.3,0.00027397,10]
[335556558,1724325353776,-214894.66814782,0.00030192,30]
[335556559,1724325353801,-77679.50566781,0.00030192,30]
[335556560,1724325353824,-31426.92344716,0.00030192,30]
[335556561,1724325353848,-35525.07490001,0.00030192,30]
[335556562,1724325353873,-54242.76391783,0.00030192,30]
[335556563,1724325353897,-69265.59098605,0.00030192,30]
[335556564,1724325353921,-3385.77368277,0.00030192,120]
[335556565,1724325353944,-200.62576633,0.00030192,120]
[335556566,1724325353968,-236.26801619,0.00030192,60]
[335556567,1724325353992,-290.0,0.00030192,120]
[335556568,1724325354016,-349.13027462,0.00030192,120]
[335556569,1724325354039,-26961.86416657,0.00030192,30]
[335556570,1724325354062,-41555.5082162,0.00030192,90]
[335556571,1724325354085,-80000.0,0.00030192,120]
[335556572,1724325354109,-2367.47121739,0.00030192,120]
[335556573,1724325354132,-138900.0,0.00030192,120]
[335556574,1724325354156,-161.0,0.00030192,120]
[335556575,1724325354181,-1174.00536409,0.00030192,120]
[335556576,1724325354204,-211.99366036,0.00030192,120]
[335556577,1724325354229,-192.05088314,0.00030192,31]
[335556578,1724325354253,-179.63447717,0.00030192,30]
[335556579,1724325354277,-220800.14720849,0.00030192,14]
[335556580,1724325357468,-80293.39058935,0.00030192,14]
[335556581,1724325357494,-503.0,0.00030192,120]
[335556582,1724325357518,-919203.60941065,0.00030192,30]
[335556583,1724325359643,4063.58,0.00027397,10]
[335556588,1724325363176,-3580796.39058935,0.00030192,30]
[335556589,1724325363202,-1419203.60941065,0.00030192,60]
[335556590,1724325364255,280.0,0.000253,10]
[335556591,1724325365950,987.42379253,0.0003,30]
[335556592,1724325366018,391.0,0.0002783,15]
[335556593,1724325367440,-3580796.39058935,0.00030192,60]
[335556594,1724325367464,-1000000.0,0.00030192,60]
[335556595,1724325367488,-2484.30439506,0.00030192,120]
[335556596,1724325367513,-2000.0,0.00030192,120]
[335556597,1724325367540,-50000.0,0.00030192,30]
[335556598,1724325367566,-50000.0,0.00030192,31]
[335556599,1724325367593,-50000.0,0.00030192,32]
[335556600,1724325367621,-50000.0,0.00030192,33]
[335556601,1724325367645,-67725.30150872,0.00030192,30]
[335556602,1724325367669,-146994.00350687,0.00030192,30]
[335556603,1724325371362,3386.32,0.00027397,10]
[335556604,1724325378047,-67541.42890205,0.00030192,30]
[335556605,1724325378071,-22279.932574,0.00030192,30]
[335556606,1724325378098,-4419.25745452,0.00030192,30]
[335556607,1724325378122,-217.68873578,0.00030192,120]
[335556608,1724325378145,-4000.0,0.00030192,120]
[335556609,1724325378168,-1267.66321405,0.00030192,120]
[335556610,1724325378191,-673.0,0.00030192,30]
[335556611,1724325378216,-10000.0,0.00030192,30]
[335556612,1724325378239,-249.80894002,0.00030192,60]
[335556613,1724325378262,-4249.18210413,0.00030192,30]
[335556614,1724325378286,-258.50057343,0.00030192,120]
[335556615,1724325378309,-12386.86317928,0.00030192,30]
[335556616,1724325378332,-151.11592838,0.00030192,120]
[335556617,1724325378356,-443.43517689,0.00030192,120]
[335556618,1724325378378,-144355.0,0.00030192,30]
[335556619,1724325378401,-200.34945645,0.00030192,120]
[335556620,1724325378424,-12149.0,0.00030192,30]
[335556621,1724325378599,-10124.35291933,0.00030192,15]
[335556622,1724325378625,-6751.37510245,0.00030192,30]
[335556623,1724325378649,-728.06296945,0.00030192,120]
[335556624,1724325378673,-918.48385623,0.00030192,30]
[335556625,1724325378698,-146203.53147958,0.00030192,31]
[335556626,1724325378722,-20721.23390868,0.00030192,120]
[335556627,1724325378745,-10042.82453787,0.00030192,120]
[335556628,1724325378778,-3768.95063382,0.00030192,20]
[335556629,1724325378802,-1882.93126503,0.00030192,90]
[335556630,1724325378825,-597.32888318,0.00030192,120]
[335556631,1724325378850,-3863.55270537,0.00030192,120]
[335556632,1724325378875,-186.94620325,0.00030192,120]
[335556633,1724325378898,-2339.160307,0.00030192,120]
[335556634,1724325378922,-20000.0,0.00030192,90]
[335556635,1724325378948,-20000.0,0.00030192,120]
[335556636,1724325378971,-10920.01744653,0.00030192,120]
[335556637,1724325378994,-601.51229101,0.00030192,120]
[335556638,1724325379020,-101000.13182866,0.00030192,120]
[335556639,1724325379044,-2215.84109524,0.00030192,35]
[335556640,1724325379068,-355.07732419,0.00030192,120]
[335556641,1724325379092,-2000.58639756,0.00030192,120]
[335556642,1724325379116,-5803.35117255,0.00030192,120]
[335556643,1724325379140,-2000.0,0.00030192,30]
[335556644,1724325379164,-2000.0,0.00030192,30]
[335556645,1724325379188,-2000.0,0.00030192,30]
[335556646,1724325379211,-2000.0,0.00030192,30]
[335556647,1724325379234,-13216.62999944,0.00030192,120]
[335556648,1724325379258,-2000.0,0.00030192,30]
[335556649,1724325379282,-2000.0,0.00030192,30]
[335556650,1724325379306,-2000.0,0.00030192,30]
[335556651,1724325379330,-2000.0,0.00030192,30]
[335556652,1724325379354,-2000.0,0.00030192,30]
[335556653,1724325379378,-2000.0,0.00030192,30]
[335556654,1724325379401,-2000.0,0.00030192,30]
[335556655,1724325379425,-37496.17733609,0.00030192,120]
[335556656,1724325379449,-21160.86661745,0.00030192,120]
[335556657,1724325379473,-41685.85535942,0.00030192,120]
[335556658,1724325379497,-128914.89525639,0.00030192,120]
[335556659,1724325379523,-1167714.13731583,0.00030192,120]
[335556660,1724325379547,-214742.12241919,0.00030192,120]
[335556661,1724325379573,-925393.94845209,0.00030192,120]
[335556662,1724325379597,-289710.75954453,0.00030192,120]
[335556663,1724325379624,-2000.0,0.00030192,30]
[335556664,1724325379647,-992.0,0.00030192,30]
[335556665,1724325379671,-208.0,0.00030192,30]
[335556666,1724325379696,-200.0,0.00030192,30]
[335556667,1724325379719,-186.0,0.00030192,30]
[335556668,1724325379743,-2000.0,0.00030192,30]
[335556669,1724325379767,-2000.0,0.00030192,30]
[335556670,1724325379790,-2000.0,0.00030192,30]
[335556671,1724325379813,-2000.0,0.00030192,30]
[335556672,1724325379836,-208.0,0.00030192,30]
[335556673,1724325379860,-200.0,0.00030192,30]
[335556674,1724325379884,-186.0,0.00030192,30]
[335556675,1724325379907,-2000.0,0.00030192,120]
[335556676,1724325379932,-2000.0,0.00030192,120]
[335556677,1724325379958,-2000.0,0.00030192,120]
[335556678,1724325379981,-2000.0,0.00030192,120]
[335556679,1724325380005,-2000.0,0.00030192,120]
[335556680,1724325380030,-167.0,0.00030192,120]
[335556681,1724325380053,-182.05263501,0.00030192,30]
[335556682,1724325380078,-107869.8026,0.00030192,30]
[335556683,1724325380100,-561.199999,0.00030192,30]
[335556684,1724325380124,-561.199999,0.00030192,30]
[335556685,1724325380147,-561.199999,0.00030192,30]
[335556686,1724325380178,-561.199999,0.00030192,30]
[335556687,1724325380209,-237.98211159,0.00030192,60]
[335556688,1724325380235,-571822.2341799,0.00030192,120]
[335556689,1724325380266,-2802.00848811,0.00030192,120]
[335556690,1724325380295,-1057.89832448,0.00030192,120]
[335556691,1724325380326,-258.0,0.00030192,120]
[335556692,1724325380356,-154.77282775,0.00030192,30]
[335556693,1724325380384,-177.86578534,0.00030192,30]
[335556694,1724325380412,-15436.7885575,0.00030192,30]
[335556695,1724325380441,-26148.18461443,0.00030192,30]
[335556696,1724325380471,-4701.1272255,0.00030192,30]
[335556697,1724325380495,-9219.31598311,0.00030192,30]
[335556698,1724325380523,-1926.04305951,0.00030192,60]
[335556699,1724325380552,-678.30079664,0.00030192,120]
[335556700,1724325380581,-3321.91214164,0.00030192,120]
[335556701,1724325380611,-8346.0,0.00030192,60]
[335556702,1724325380644,-154.3403364,0.00030192,120]
[335556703,1724325380671,-1195.67808624,0.00030192,120]
[335556704,1724325380697,-855.22408254,0.00030192,120]
[335556705,1724325380726,-286.74087597,0.00030192,120]
[335556706,1724325380755,-215.07468343,0.00030192,90]
[335556707,1724325380783,-5463.83802277,0.00030192,60]
[335556708,1724325380811,-485.03801484,0.00030192,30]
[335556709,1724325380839,-10000.0,0.00030192,120]
[335556710,1724325380864,-10000.0,0.00030192,120]
[335556711,1724325380890,-25521.30466573,0.00030192,120]
[335556712,1724325380916,-3097.0,0.00030192,10]
[335556713,1724325380943,-10103.8733853,0.00030192,120]
[335556714,1724325380971,-4148.22240748,0.00030192,30]
[335556715,1724325380998,-945.96567969,0.00030192,30]
[335556716,1724325381026,-4961.0,0.00030192,30]
[335556717,1724325381053,-10000.0,0.00030192,120]
[335556718,1724325381080,-2824.0,0.00030192,120]
[335556719,1724325381107,-1832.0,0.00030192,120]
[335556720,1724325381134,-393.29836494,0.00030192,28]
[335556721,1724325381159,-1000.0,0.00030192,30]
[335556722,1724325381185,-1000.0,0.00030192,30]
[335556723,1724325381211,-1000.0,0.00030192,30]
[335556724,1724325381236,-1000.0,0.00030192,30]
[335556725,1724325381262,-1000.0,0.00030192,30]
[335556726,1724325381289,-1000.0,0.00030192,30]
[335556727,1724325381315,-1000.0,0.00030192,30]
[335556728,1724325381340,-1000.0,0.00030192,30]
[335556729,1724325381367,-1000.0,0.00030192,30]
[335556730,1724325381393,-1000.0,0.00030192,30]
[335556731,1724325381420,-1000.0,0.00030192,30]
[335556732,1724325381447,-1000.0,0.00030192,30]
[335556733,1724325381473,-1000.0,0.00030192,30]
[335556734,1724325381500,-1000.0,0.00030192,30]
[335556735,1724325381528,-1000.0,0.00030192,30]
[335556736,1724325381557,-1000.0,0.00030192,30]
[335556737,1724325381585,-1000.0,0.00030192,30]
[335556738,1724325381612,-1000.0,0.00030192,30]
[335556739,1724325381638,-1000.0,0.00030192,30]
[335556740,1724325381662,-1000.0,0.00030192,30]
[335556741,1724325381685,-1000.0,0.00030192,30]
[335556742,1724325381710,-1000.0,0.00030192,30]
[335556743,1724325381733,-1000.0,0.00030192,30]
[335556744,1724325381756,-1000.0,0.00030192,30]
[335556745,1724325381780,-1000.0,0.00030192,30]
[335556746,1724325382006,-1000.0,0.00030192,30]
[335556747,1724325382037,-1000.0,0.00030192,30]
[335556748,1724325382063,-1000.0,0.00030192,30]
[335556749,1724325382086,-1000.0,0.00030192,30]
[335556750,1724325382109,-1000.0,0.00030192,30]
[335556751,1724325382132,-580682.44120177,0.00030192,30]
[335556752,1724325383527,2821.93,0.00027397,10]
[335556753,1724325384735,410.5072701,0.00021638,15]
[335556754,1724325385057,410.5072701,0.00021892,15]
[335556755,1724325385415,410.5072701,0.00022142,15]
[335556756,1724325385744,410.5072701,0.0002225,15]
[335556757,1724325386067,410.5072701,0.00022604,15]
[335556758,1724325386399,410.5072701,0.0002274,15]
[335556759,1724325386792,410.5072701,0.00023153,15]
[335556760,1724325387184,410.5072701,0.000234,15]
[335556761,1724325387520,-499197.27448105,0.00030192,30]
[335556762,1724325387545,-2969.0,0.00030192,30]
[335556763,1724325387570,-155.52336,0.00030192,40]
[335556764,1724325387594,-155.52336,0.00030192,40]
[335556765,1724325387618,-150.0,0.00030192,30]
[335556766,1724325387646,-150.0,0.00030192,30]
[335556767,1724325387671,-286.874457,0.00030192,30]
[335556768,1724325387845,410.5072701,0.00023629,15]
[335556769,1724325387880,410.5072701,0.00023903,15]
[335556770,1724325388167,410.5072701,0.00024129,15]
[335556771,1724325388503,410.5072701,0.0002462,15]
[335556772,1724325388838,410.5072701,0.00024926,15]
[335556773,1724325389170,410.5072701,0.000252,15]
[335556774,1724325389538,410.5072701,0.00025274,15]
[335556775,1724325389853,410.5072701,0.0002574,15]
[335556776,1724325390187,410.5072701,0.00025784,15]
[335556777,1724325390532,410.5072701,0.00026054,15]
[335556778,1724325390839,410.5072701,0.00026522,15]
[335556779,1724325391185,410.5072701,0.00026672,15]
[335556780,1724325391524,410.5072701,0.00026963,15]
[335556781,1724325392011,410.5072701,0.00027264,15]
[335556782,1724325392469,410.5072701,0.00027581,15]
[335556783,1724325392822,410.5072701,0.00027862,15]
[335556784,1724325393220,410.5072701,0.00028149,15]
[335556785,1724325394041,410.5072701,0.00028242,15]
[335556786,1724325394501,410.5072701,0.00028507,15]
[335556787,1724325394888,410.5072701,0.00028861,15]
[335556788,1724325395264,410.5072701,0.0002927,15]
[335556789,1724325395424,2351.61,0.00027397,10]
[335556790,1724325395633,410.5072701,0.00029431,15]
[335556791,1724325396007,410.5072701,0.00029658,15]
[335556792,1724325396363,410.5072706,0.00030128,15]
[335556793,1724325402904,449.26,8.332e-05,2]
[335556797,1724325749510,196.2,9.878e-05,2]
[335556798,1724325855967,444.95,8.219e-05,2]
[335556799,1724325937332,461.79468298,9.5e-05,2]
[335556800,1724325958016,348.12545345,9.899e-05,2]
[335556802,1724326029584,1000.0,9.846e-05,2]
[335556809,1724326085826,195.32,9.772e-05,2]
[335556820,1724326128763,758.16372291,0.00023835,120]
[335556830,1724326166258,732.4462032,9.899e-05,2]
[335556841,1724326194135,344.1575722,9.899e-05,2]
[335556843,1724326211763,155.28198435,9.899e-05,2]
[335556881,1724326231642,-321.87,9.914e-05,2]
[335556882,1724326231651,-209.77305265,9.926e-05,2]
[335556886,1724326234626,250.0,9.82e-05,2]
[335556898,1724326237605,-298.41728368,9.926e-05,2]
[335556899,1724326237617,-30.93966367,9.926e-05,2]
[335556900,1724326237627,-203.06755488,9.929e-05,2]
[335556901,1724326237636,-145.68940809,9.941e-05,2]
[335556902,1724326237726,-9.31059191,9.941e-05,2]
[335556903,1724326237735,-878.59,9.941e-05,2]
[335556904,1724326237744,-300.0,9.942e-05,2]
[335556905,1724326237753,-300.0,9.942e-05,2]
[335556906,1724326237762,-206.02448722,9.943e-05,2]
[335556907,1724326237772,-9277.21709764,9.943e-05,2]
[335556908,1724326237782,-206.02448722,9.943e-05,2]
[335556909,1724326237792,-155.0,9.943e-05,2]
[335556910,1724326237801,-531.64305265,9.988e-05,2]
[335556911,1724326237810,-155.0,0.00010026,2]
[335556912,1724326237820,-245.14084928,0.000101,2]
[335556913,1724326237829,-444.95,0.00010469,2]
[335556914,1724326237838,-499.99,0.00010471,2]
[335556915,1724326237847,-12209.5491,0.0001049,2]
[335556916,1724326237857,-332.95579232,0.000106,2]
[335556917,1724326237866,-1000.0,0.000106,2]
[335556918,1724326237876,-150.0,0.00010699,2]
[335556919,1724326237891,-1634.9902,0.000107,2]
[335556920,1724326237901,-1000.0,0.000107,2]
[335556921,1724326237910,-200.0,0.00010773,2]
[335556922,1724326237919,-3728.0,0.0001079,2]
[335556923,1724326237930,-5847.0,0.0001079,2]
[335556924,1724326237939,-623.0,0.0001079,2]
[335556925,1724326237950,-500.0,0.00010799,2]
[335556926,1724326237959,-212.74088138,0.00010799,2]
[335556927,1724326237971,-500.0,0.00010799,2]
[335556928,1724326237980,-500.0,0.00010799,2]
[335556929,1724326237992,-500.0,0.00010799,2]
[335556932,1724326238001,-500.0,0.00010799,2]
[335556933,1724326238175,-500.0,0.00010799,2]
[335556934,1724326238185,-500.0,0.00010799,2]
[335556935,1724326238195,-500.0,0.00010799,2]
[335556937,1724326238205,-500.0,0.00010799,2]
[335556939,1724326238215,-201.01817711,0.00010799,2]
[335556941,1724326238226,-500.0,0.00010799,2]
[335556943,1724326238235,-500.0,0.00010799,2]
[335556945,1724326238245,-500.0,0.00010799,2]
[335556947,1724326238255,-500.0,0.00010799,2]
[335556949,1724326238264,-500.0,0.00010799,2]
[335556951,1724326238274,-500.0,0.00010799,2]
[335556953,1724326238283,-500.0,0.00010799,2]
[335556955,1724326238293,-500.0,0.00010799,2]
[335556957,1724326238302,-500.0,0.00010799,2]
[335556959,1724326238312,-500.0,0.00010799,2]
[335556961,1724326238321,-500.0,0.00010799,2]
[335556963,1724326238330,-500.0,0.00010799,2]
[335556965,1724326238340,-500.0,0.00010799,2]
[335556967,1724326238350,-593.12197962,0.00010799,2]
[335556969,1724326238359,-500.0,0.00010799,2]
[335556971,1724326238368,-317.49242421,0.00010799,2]
[335556973,1724326238378,-177.10380774,0.00010799,2]
[335556975,1724326238387,-500.0,0.00010799,2]
[335556977,1724326238397,-599.03,0.00010799,2]
[335556979,1724326238406,-505.54,0.00010799,2]
[335556981,1724326238415,-500.0,0.00010799,2]
[335556983,1724326238425,-500.0,0.00010799,2]
[335556985,1724326238434,-500.0,0.00010799,2]
[335556986,1724326238444,-500.0,0.00010799,2]
[335556989,1724326238453,-500.0,0.00010799,2]
[335556990,1724326238462,-500.0,0.00010799,2]
[335556992,1724326238472,-500.0,0.00010799,2]
[335556993,1724326238482,-500.0,0.00010799,2]
[335556994,1724326238491,-500.0,0.00010799,2]
[335556995,1724326238500,-500.0,0.00010799,2]